[Event "NJSK 2023 Meisjes B"]
[Site "Almelo, Netherlands"]
[Date "2023.05.02"]
[Round "3.7"]
[White "Wortman, Manixia"]
[Black "Knobbe, Elise"]
[Result "1/2-1/2"]
[TimeControl "90min/40moves + 30min + 30sec/move"]
[WhiteElo "1493"]
[BlackElo "1584"]

1. e4 {[%clk 01:30:58]} {[%emt 00:00:01]} c5 {[%clk 01:30:52]} {[%emt
00:00:09]} 2. c3 {[%clk 01:31:18]} {[%emt 00:00:10]} d5 {[%clk 01:31:17]}
{[%emt 00:00:05]} 3. exd5 {[%clk 01:31:38]} {[%emt 00:00:11]} Qxd5 {[%clk
01:31:39]} {[%emt 00:00:07]} 4. Nf3 {[%clk 01:31:58]} {[%emt 00:00:09]} Nf6
{[%clk 01:31:52]} {[%emt 00:00:17]} 5. Be2 {[%clk 01:31:21]} {[%emt 00:01:07]}
e6 {[%clk 01:31:16]} {[%emt 00:01:07]} 6. O-O {[%clk 01:31:17]} {[%emt
00:00:34]} Be7 {[%clk 01:31:22]} {[%emt 00:00:25]} 7. d4 {[%clk 01:31:24]}
{[%emt 00:00:24]} O-O {[%clk 01:31:13]} {[%emt 00:00:39]} 8. Be3 {[%clk
01:31:16]} {[%emt 00:00:38]} cxd4 {[%clk 01:31:22]} {[%emt 00:00:21]} 9. Nxd4
{[%clk 01:31:06]} {[%emt 00:00:40]} Rd8 {[%clk 01:18:23]} {[%emt 00:13:28]} 10.
Bf3 {[%clk 01:27:43]} {[%emt 00:03:54]} Qc4 {[%clk 01:13:41]} {[%emt 00:05:12]}
11. Nd2 {[%clk 01:26:54]} {[%emt 00:01:19]} Qa6 {[%clk 00:58:52]} {[%emt
00:15:20]} 12. Qb3 {[%clk 01:20:52]} {[%emt 00:06:31]} Nd5 {[%clk 00:51:14]}
{[%emt 00:08:08]} 13. Nc4 {[%clk 01:10:09]} {[%emt 00:11:13]} Nxe3 {[%clk
00:47:38]} {[%emt 00:04:06]} 14. Nxe3 {[%clk 01:10:04]} {[%emt 00:00:35]} Nc6
{[%clk 00:45:56]} {[%emt 00:02:13]} 15. Nxc6 {[%clk 01:02:17]} {[%emt
00:08:16]} bxc6 {[%clk 00:45:59]} {[%emt 00:00:27]} 16. Rfd1 {[%clk 01:00:56]}
{[%emt 00:01:51]} Bb7 {[%clk 00:40:59]} {[%emt 00:05:31]} 17. Nc4 {[%clk
00:57:45]} {[%emt 00:03:40]} Rab8 {[%clk 00:34:02]} {[%emt 00:07:27]} 18. Rxd8+
{[%clk 00:52:07]} {[%emt 00:06:08]} Rxd8 {[%clk 00:32:13]} {[%emt 00:02:18]} 19.
Na5 {[%clk 00:49:24]} {[%emt 00:03:14]} Ba8 {[%clk 00:30:50]} {[%emt 00:01:53]}
20. Nc4 {[%clk 00:32:40]} {[%emt 00:17:14]} Qc8 {[%clk 00:22:40]} {[%emt
00:08:40]} 21. Rd1 {[%clk 00:30:56]} {[%emt 00:02:14]} c5 {[%clk 00:16:45]}
{[%emt 00:06:25]} 22. Rxd8+ {[%clk 00:23:35]} {[%emt 00:07:50]} Qxd8 {[%clk
00:15:16]} {[%emt 00:01:59]} 23. Bxa8 {[%clk 00:23:31]} {[%emt 00:00:34]} Qxa8
{[%clk 00:15:40]} {[%emt 00:00:06]} 24. Qd1 {[%clk 00:23:06]} {[%emt 00:00:55]}
Qd5 {[%clk 00:14:01]} {[%emt 00:02:09]} 25. Qxd5 {[%clk 00:20:04]} {[%emt
00:03:32]} exd5 {[%clk 00:14:07]} {[%emt 00:00:25]} 26. Ne5 {[%clk 00:15:27]}
{[%emt 00:05:07]} Bd6 {[%clk 00:11:35]} {[%emt 00:03:01]} 27. Nd3 {[%clk
00:08:53]} {[%emt 00:07:04]} f6 {[%clk 00:09:10]} {[%emt 00:02:55]} 28. h3
{[%clk 00:08:54]} {[%emt 00:00:29]} Kf7 {[%clk 00:08:54]} {[%emt 00:00:47]} 29.
Kf1 {[%clk 00:08:18]} {[%emt 00:01:05]} Ke6 {[%clk 00:08:11]} {[%emt 00:01:13]}
30. Ke2 {[%clk 00:08:01]} {[%emt 00:00:47]} d4 {[%clk 00:06:49]} {[%emt
00:01:54]} 31. c4 {[%clk 00:07:39]} {[%emt 00:00:51]} a5 {[%clk 00:06:46]}
{[%emt 00:00:33]} 32. a4 {[%clk 00:06:26]} {[%emt 00:01:44]} g5 {[%clk
00:06:10]} {[%emt 00:01:06]} 1/2-1/2

[Event "NJSK 2023 Meisjes B"]
[Site "Almelo, Netherlands"]
[Date "2023.05.03"]
[Round "4.1"]
[White "Damen, Josephine"]
[Black "Gergin, Isafara"]
[Result "1-0"]
[TimeControl "90min/40moves + 30min + 30sec/move"]
[WhiteElo "1628"]
[BlackElo "1762"]

1. e4 {[%clk 01:30:56]} {[%emt 00:00:03]} c5 {[%clk 01:30:53]} {[%emt
00:00:08]} 2. Nf3 {[%clk 01:31:18]} {[%emt 00:00:07]} Nc6 {[%clk 01:31:16]}
{[%emt 00:00:08]} 3. d4 {[%clk 01:31:42]} {[%emt 00:00:06]} cxd4 {[%clk
01:31:41]} {[%emt 00:00:06]} 4. Nxd4 {[%clk 01:32:03]} {[%emt 00:00:09]} Nf6
{[%clk 01:32:00]} {[%emt 00:00:11]} 5. Nc3 {[%clk 01:32:21]} {[%emt 00:00:11]}
e5 {[%clk 01:32:23]} {[%emt 00:00:08]} 6. Ndb5 {[%clk 01:32:42]} {[%emt
00:00:08]} d6 {[%clk 01:32:41]} {[%emt 00:00:12]} 7. Bg5 {[%clk 01:33:00]}
{[%emt 00:00:12]} a6 {[%clk 01:33:01]} {[%emt 00:00:11]} 8. Na3 {[%clk
01:33:21]} {[%emt 00:00:08]} b5 {[%clk 01:33:23]} {[%emt 00:00:08]} 9. Bxf6
{[%clk 01:33:30]} {[%emt 00:00:20]} gxf6 {[%clk 01:33:42]} {[%emt 00:00:11]} 10.
Nd5 {[%clk 01:33:51]} {[%emt 00:00:09]} f5 {[%clk 01:33:59]} {[%emt 00:00:14]}
11. c3 {[%clk 01:33:43]} {[%emt 00:00:38]} Bg7 {[%clk 01:33:45]} {[%emt
00:00:44]} 12. exf5 {[%clk 01:34:05]} {[%emt 00:00:09]} Bxf5 {[%clk 01:33:59]}
{[%emt 00:00:16]} 13. Nc2 {[%clk 01:34:24]} {[%emt 00:00:11]} O-O {[%clk
01:33:13]} {[%emt 00:01:16]} 14. Nce3 {[%clk 01:34:19]} {[%emt 00:00:34]} Be6
{[%clk 01:32:51]} {[%emt 00:00:53]} 15. Bd3 {[%clk 01:34:24]} {[%emt 00:00:25]}
f5 {[%clk 01:31:39]} {[%emt 00:01:42]} 16. O-O {[%clk 01:34:18]} {[%emt
00:00:36]} Rb8 {[%clk 01:27:41]} {[%emt 00:04:29]} 17. a4 {[%clk 01:09:57]}
{[%emt 00:24:51]} Kh8 {[%clk 01:14:18]} {[%emt 00:13:52]} 18. axb5 {[%clk
00:58:23]} {[%emt 00:12:05]} axb5 {[%clk 01:13:39]} {[%emt 00:01:09]} 19. Bc2
{[%clk 00:45:13]} {[%emt 00:13:40]} Qg5 {[%clk 01:03:53]} {[%emt 00:10:16]} 20.
Nc7 {[%clk 00:39:50]} {[%emt 00:05:52]} Qe7 {[%clk 00:50:21]} {[%emt 00:14:02]}
21. Nxe6 {[%clk 00:38:01]} {[%emt 00:02:19]} Qxe6 {[%clk 00:50:41]} {[%emt
00:00:09]} 22. Bb3 {[%clk 00:36:29]} {[%emt 00:02:03]} Qg6 {[%clk 00:44:27]}
{[%emt 00:06:45]} 23. Ra6 {[%clk 00:27:05]} {[%emt 00:09:54]} Rbc8 {[%clk
00:36:37]} {[%emt 00:08:19]} 24. Qd5 {[%clk 00:19:55]} {[%emt 00:07:41]} f4
{[%clk 00:30:06]} {[%emt 00:07:00]} 25. Bc2 {[%clk 00:14:55]} {[%emt 00:05:29]}
Qg5 {[%clk 00:18:31]} {[%emt 00:12:05]} 26. Qe4 {[%clk 00:13:01]} {[%emt
00:02:25]} Qh5 {[%clk 00:13:04]} {[%emt 00:05:57]} 27. Nf5 {[%clk 00:12:12]}
{[%emt 00:01:20]} Nb8 {[%clk 00:08:53]} {[%emt 00:04:40]} 28. Ra7 {[%clk
00:06:54]} {[%emt 00:05:48]} Rg8 {[%clk 00:03:23]} {[%emt 00:06:00]} 29. Nxg7
{[%clk 00:06:22]} {[%emt 00:01:02]} Rxg7 {[%clk 00:03:27]} {[%emt 00:00:26]} 30.
Rxg7 {[%clk 00:06:44]} {[%emt 00:00:08]} Kxg7 {[%clk 00:01:57]} {[%emt
00:02:00]} 31. Qb7+ {[%clk 00:07:04]} {[%emt 00:00:10]} Qf7 {[%clk 00:01:52]}
{[%emt 00:00:35]} 32. Qxc8 {[%clk 00:07:23]} {[%emt 00:00:12]} Nd7 {[%clk
00:02:14]} {[%emt 00:00:08]} 33. Qc6 {[%clk 00:07:12]} {[%emt 00:00:40]} Qe7
{[%clk 00:01:55]} {[%emt 00:00:50]} 34. Qxb5 {[%clk 00:07:13]} {[%emt
00:00:29]} e4 {[%clk 00:01:57]} {[%emt 00:00:28]} 35. Qf5 {[%clk 00:06:24]}
{[%emt 00:01:19]} f3 {[%clk 00:00:59]} {[%emt 00:01:29]} 36. Bxe4 {[%clk
00:06:18]} {[%emt 00:00:35]} 1-0

[Event "NJSK 2023 Meisjes B"]
[Site "Almelo, Netherlands"]
[Date "2023.05.03"]
[Round "4.2"]
[White "Feng, Elysia"]
[Black "Tangarife Ramirez, Katja"]
[Result "1/2-1/2"]
[TimeControl "90min/40moves + 30min + 30sec/move"]
[WhiteElo "1697"]
[BlackElo "1667"]

1. e4 {[%clk 01:30:59]} c6 {[%clk 01:30:57]} {[%emt 00:00:04]} 2. d4 {[%clk
01:31:24]} {[%emt 00:00:05]} d5 {[%clk 01:31:24]} {[%emt 00:00:03]} 3. exd5
{[%clk 01:31:50]} {[%emt 00:00:04]} cxd5 {[%clk 01:31:52]} {[%emt 00:00:02]} 4.
c4 {[%clk 01:32:13]} {[%emt 00:00:07]} Nf6 {[%clk 01:32:17]} {[%emt 00:00:06]}
5. Nc3 {[%clk 01:32:39]} {[%emt 00:00:04]} Nc6 {[%clk 01:32:32]} {[%emt
00:00:15]} 6. Bg5 {[%clk 01:33:00]} {[%emt 00:00:08]} dxc4 {[%clk 01:32:22]}
{[%emt 00:00:40]} 7. Bxc4 {[%clk 01:27:45]} {[%emt 00:05:45]} h6 {[%clk
01:28:08]} {[%emt 00:04:44]} 8. Bxf6 {[%clk 01:24:32]} {[%emt 00:03:43]} exf6
{[%clk 01:28:03]} {[%emt 00:00:34]} 9. Nge2 {[%clk 01:20:26]} {[%emt 00:04:36]}
Bd6 {[%clk 01:19:14]} {[%emt 00:09:19]} 10. O-O {[%clk 01:18:52]} {[%emt
00:02:04]} O-O {[%clk 01:16:59]} {[%emt 00:02:46]} 11. Rc1 {[%clk 01:13:31]}
{[%emt 00:05:51]} b6 {[%clk 01:05:01]} {[%emt 00:12:28]} 12. a3 {[%clk
01:06:08]} {[%emt 00:07:53]} Bb7 {[%clk 01:03:41]} {[%emt 00:01:50]} 13. Ba2
{[%clk 01:01:14]} {[%emt 00:05:23]} Rc8 {[%clk 00:59:39]} {[%emt 00:04:32]} 14.
Qd3 {[%clk 00:58:47]} {[%emt 00:02:56]} Ne7 {[%clk 00:53:06]} {[%emt 00:07:04]}
15. Rfd1 {[%clk 00:52:15]} {[%emt 00:07:01]} Bb8 {[%clk 00:49:54]} {[%emt
00:03:44]} 16. d5 {[%clk 00:49:28]} {[%emt 00:03:16]} Qd6 {[%clk 00:42:42]}
{[%emt 00:07:42]} 17. Ng3 {[%clk 00:46:33]} {[%emt 00:03:25]} Ng6 {[%clk
00:39:35]} {[%emt 00:03:37]} 18. b4 {[%clk 00:35:24]} {[%emt 00:11:40]} Ne5
{[%clk 00:33:22]} {[%emt 00:06:44]} 19. Nf5 {[%clk 00:23:58]} {[%emt 00:11:55]}
Nxd3 {[%clk 00:25:07]} {[%emt 00:08:44]} 20. Nxd6 {[%clk 00:23:08]} {[%emt
00:01:19]} Nxc1 {[%clk 00:24:37]} {[%emt 00:01:01]} 21. Nxc8 {[%clk 00:23:30]}
{[%emt 00:00:08]} Rxc8 {[%clk 00:24:26]} {[%emt 00:00:41]} 22. Rxc1 {[%clk
00:23:52]} {[%emt 00:00:09]} Bf4 {[%clk 00:24:03]} {[%emt 00:00:53]} 23. Rc2
{[%clk 00:20:08]} {[%emt 00:04:14]} Be5 {[%clk 00:24:19]} {[%emt 00:00:14]} 24.
d6 {[%clk 00:20:32]} {[%emt 00:00:06]} Bxd6 {[%clk 00:19:59]} {[%emt 00:04:51]}
25. Bb3 {[%clk 00:20:45]} {[%emt 00:00:17]} Be5 {[%clk 00:17:15]} {[%emt
00:03:13]} 26. Ne2 {[%clk 00:18:59]} {[%emt 00:02:16]} Rxc2 {[%clk 00:15:01]}
{[%emt 00:02:45]} 27. Bxc2 {[%clk 00:19:27]} {[%emt 00:00:02]} b5 {[%clk
00:11:24]} {[%emt 00:04:07]} 28. a4 {[%clk 00:15:24]} {[%emt 00:04:34]} Bc6
{[%clk 00:10:11]} {[%emt 00:01:43]} 29. axb5 {[%clk 00:15:39]} {[%emt
00:00:14]} Bxb5 {[%clk 00:10:34]} {[%emt 00:00:07]} 30. Nc1 {[%clk 00:16:07]}
{[%emt 00:00:02]} Bd6 {[%clk 00:08:55]} {[%emt 00:02:09]} 31. Bd3 {[%clk
00:13:53]} {[%emt 00:02:44]} a6 {[%clk 00:05:57]} {[%emt 00:03:28]} 32. Bxb5
{[%clk 00:13:20]} {[%emt 00:01:03]} axb5 {[%clk 00:06:22]} {[%emt 00:00:05]} 33.
Nd3 {[%clk 00:13:47]} {[%emt 00:00:02]} Kf8 {[%clk 00:06:38]} {[%emt 00:00:14]}
34. Kf1 {[%clk 00:14:13]} {[%emt 00:00:04]} Ke7 {[%clk 00:04:02]} {[%emt
00:03:06]} 35. Ke2 {[%clk 00:14:14]} {[%emt 00:00:28]} Ke6 {[%clk 00:04:24]}
{[%emt 00:00:09]} 36. Kd2 {[%clk 00:14:30]} {[%emt 00:00:14]} Kd5 {[%clk
00:04:33]} {[%emt 00:00:21]} 37. Kc3 {[%clk 00:14:17]} {[%emt 00:00:43]} Be5+
{[%clk 00:04:25]} {[%emt 00:00:37]} 38. Kb3 {[%clk 00:14:44]} {[%emt 00:00:04]}
Kd4 {[%clk 00:04:10]} {[%emt 00:00:45]} 39. Ne1 {[%clk 00:14:58]} {[%emt
00:00:16]} Ke4 {[%clk 00:03:27]} {[%emt 00:01:13]} 40. h3 {[%clk 00:14:39]}
{[%emt 00:00:49]} g5 {[%clk 00:01:42]} {[%emt 00:02:14]} 41. Nc2 {[%clk
00:13:47]} {[%emt 00:01:23]} Kd5 {[%clk 00:26:51]} {[%emt 00:05:21]} 42. Na3
{[%clk 00:40:33]} {[%emt 00:03:43]} Kc6 {[%clk 00:26:27]} {[%emt 00:00:54]} 43.
Nc2 {[%clk 00:40:53]} {[%emt 00:00:11]} f5 {[%clk 00:26:26]} {[%emt 00:00:31]}
44. f3 {[%clk 00:38:20]} {[%emt 00:03:03]} h5 {[%clk 00:22:52]} {[%emt
00:04:03]} 45. Na3 {[%clk 00:38:15]} {[%emt 00:00:36]} g4 {[%clk 00:21:53]}
{[%emt 00:01:28]} 46. Kc2 {[%clk 00:37:59]} {[%emt 00:00:46]} Bd6 {[%clk
00:19:12]} {[%emt 00:03:11]} 1/2-1/2

[Event "NJSK 2023 Meisjes B"]
[Site "Almelo, Netherlands"]
[Date "2023.05.03"]
[Round "4.3"]
[White "Yildirim, Azra"]
[Black "Verheij, Dana"]
[Result "0-1"]
[TimeControl "90min/40moves + 30min + 30sec/move"]
[WhiteElo "1275"]
[BlackElo "1846"]

1. e4 {[%clk 01:30:57]} {[%emt 00:00:03]} c5 {[%clk 01:30:56]} {[%emt
00:00:05]} 2. Nf3 {[%clk 01:31:18]} {[%emt 00:00:09]} d6 {[%clk 01:31:04]}
{[%emt 00:00:22]} 3. d4 {[%clk 01:28:43]} {[%emt 00:03:04]} cxd4 {[%clk
01:31:09]} {[%emt 00:00:25]} 4. Nxd4 {[%clk 01:29:09]} {[%emt 00:00:04]} Nf6
{[%clk 01:31:35]} {[%emt 00:00:04]} 5. Nc3 {[%clk 01:29:26]} {[%emt 00:00:13]}
Nc6 {[%clk 01:31:32]} {[%emt 00:00:33]} 6. Bc4 {[%clk 01:18:29]} {[%emt
00:11:28]} Qb6 {[%clk 01:29:25]} {[%emt 00:02:37]} 7. Nf3 {[%clk 01:11:41]}
{[%emt 00:07:17]} a6 {[%clk 01:25:35]} {[%emt 00:04:20]} 8. h3 {[%clk
01:05:38]} {[%emt 00:06:32]} e6 {[%clk 01:25:03]} {[%emt 00:01:02]} 9. Bb3
{[%clk 00:59:13]} {[%emt 00:06:56]} Be7 {[%clk 01:23:21]} {[%emt 00:02:11]} 10.
Bg5 {[%clk 00:54:05]} {[%emt 00:05:39]} Qc7 {[%clk 01:15:41]} {[%emt 00:08:10]}
11. O-O {[%clk 00:47:05]} {[%emt 00:07:30]} b5 {[%clk 01:12:36]} {[%emt
00:03:35]} 12. a3 {[%clk 00:42:48]} {[%emt 00:04:47]} O-O {[%clk 01:11:44]}
{[%emt 00:01:21]} 13. Qd3 {[%clk 00:38:22]} {[%emt 00:04:57]} Bb7 {[%clk
01:09:49]} {[%emt 00:02:25]} 14. Rfe1 {[%clk 00:33:15]} {[%emt 00:05:37]} Rac8
{[%clk 01:06:30]} {[%emt 00:03:49]} 15. Re3 {[%clk 00:24:05]} {[%emt 00:09:40]}
Rfd8 {[%clk 00:54:33]} {[%emt 00:12:26]} 16. Qe2 {[%clk 00:21:00]} {[%emt
00:03:35]} Na5 {[%clk 00:54:00]} {[%emt 00:01:04]} 17. Ba2 {[%clk 00:19:29]}
{[%emt 00:02:01]} Nc4 {[%clk 00:53:52]} {[%emt 00:00:38]} 18. Bxc4 {[%clk
00:18:16]} {[%emt 00:01:43]} Qxc4 {[%clk 00:53:42]} {[%emt 00:00:40]} 19. Qxc4
{[%clk 00:18:01]} {[%emt 00:00:46]} Rxc4 {[%clk 00:54:02]} {[%emt 00:00:09]} 20.
e5 {[%clk 00:14:57]} {[%emt 00:03:34]} dxe5 {[%clk 00:53:09]} {[%emt 00:01:23]}
21. Nxe5 {[%clk 00:14:47]} {[%emt 00:00:40]} Rcd4 {[%clk 00:48:55]} {[%emt
00:04:44]} 22. Nf3 {[%clk 00:11:46]} {[%emt 00:03:32]} Rc4 {[%clk 00:48:49]}
{[%emt 00:00:34]} 23. b3 {[%clk 00:10:53]} {[%emt 00:01:25]} Rcc8 {[%clk
00:47:48]} {[%emt 00:01:31]} 24. Rd1 {[%clk 00:09:18]} {[%emt 00:02:05]} Rxd1+
{[%clk 00:47:24]} {[%emt 00:00:55]} 25. Nxd1 {[%clk 00:09:44]} {[%emt
00:00:04]} Rxc2 {[%clk 00:47:29]} {[%emt 00:00:24]} 26. Rd3 {[%clk 00:06:59]}
{[%emt 00:03:17]} h6 {[%clk 00:47:06]} {[%emt 00:00:52]} 27. Be3 {[%clk
00:06:22]} {[%emt 00:01:07]} Bxa3 {[%clk 00:46:07]} {[%emt 00:01:30]} 28. Ne5
{[%clk 00:04:09]} {[%emt 00:02:43]} Nd5 {[%clk 00:43:12]} {[%emt 00:03:25]} 29.
Kf1 {[%clk 00:02:23]} {[%emt 00:02:16]} Bd6 {[%clk 00:41:32]} {[%emt 00:02:10]}
30. Nf3 {[%clk 00:02:27]} {[%emt 00:00:27]} Nxe3+ {[%clk 00:39:42]} {[%emt
00:02:19]} 31. Nxe3 {[%clk 00:02:42]} {[%emt 00:00:15]} Rc1+ {[%clk 00:40:05]}
{[%emt 00:00:06]} 32. Ke2 {[%clk 00:02:09]} {[%emt 00:01:04]} Bxf3+ {[%clk
00:39:00]} {[%emt 00:01:34]} 33. gxf3 {[%clk 00:02:35]} {[%emt 00:00:04]} Be5
{[%clk 00:37:45]} {[%emt 00:01:44]} 34. Nd1 {[%clk 00:02:10]} {[%emt 00:00:56]}
a5 {[%clk 00:37:50]} {[%emt 00:00:25]} 35. Ke3 {[%clk 00:02:03]} {[%emt
00:00:38]} Rc8 {[%clk 00:37:09]} {[%emt 00:01:10]} 36. f4 {[%clk 00:02:00]}
{[%emt 00:00:34]} Bf6 {[%clk 00:37:32]} {[%emt 00:00:05]} 37. Ke4 {[%clk
00:02:20]} {[%emt 00:00:12]} a4 {[%clk 00:36:47]} {[%emt 00:01:14]} 38. bxa4
{[%clk 00:01:52]} {[%emt 00:00:58]} bxa4 {[%clk 00:37:12]} {[%emt 00:00:05]} 39.
Ra3 {[%clk 00:02:14]} {[%emt 00:00:08]} Ra8 {[%clk 00:37:35]} {[%emt 00:00:06]}
40. f5 {[%clk 00:02:19]} {[%emt 00:00:25]} exf5+ {[%clk 00:37:29]} {[%emt
00:00:36]} 41. Kxf5 {[%clk 00:02:33]} {[%emt 00:00:17]} Be7 {[%clk 00:36:47]}
{[%emt 00:01:11]} 42. Ra2 {[%clk 00:02:25]} {[%emt 00:00:39]} Kf8 {[%clk
00:36:43]} {[%emt 00:00:33]} 43. Ke5 {[%clk 00:01:22]} {[%emt 00:01:33]} a3
{[%clk 00:36:49]} {[%emt 00:00:24]} 44. Ke4 {[%clk 00:30:01]} {[%emt 00:01:51]}
Ke8 {[%clk 01:07:01]} {[%emt 00:00:18]} 45. Kd3 {[%clk 00:30:21]} {[%emt
00:00:10]} Kd7 {[%clk 01:07:23]} {[%emt 00:00:08]} 46. Kc4 {[%clk 00:30:29]}
{[%emt 00:00:23]} Ke6 {[%clk 01:07:25]} {[%emt 00:00:27]} 47. Kd3 {[%clk
00:30:26]} {[%emt 00:00:34]} Kf5 {[%clk 01:06:34]} {[%emt 00:01:21]} 48. Ke3
{[%clk 00:30:33]} {[%emt 00:00:23]} Ke5 {[%clk 01:06:43]} {[%emt 00:00:20]} 49.
f4+ {[%clk 00:28:55]} {[%emt 00:02:08]} Kf5 {[%clk 01:03:20]} {[%emt 00:03:53]}
50. Kf3 {[%clk 00:28:23]} {[%emt 00:01:02]} Bd6 {[%clk 01:03:45]} {[%emt
00:00:05]} 51. Ne3+ {[%clk 00:28:40]} {[%emt 00:00:14]} Ke6 {[%clk 01:03:10]}
{[%emt 00:01:04]} 52. Ke4 {[%clk 00:27:13]} {[%emt 00:01:57]} Ra4+ {[%clk
01:03:17]} {[%emt 00:00:23]} 53. Kd3 {[%clk 00:26:56]} {[%emt 00:00:47]} Bxf4
{[%clk 01:02:17]} {[%emt 00:01:30]} 54. Nc4 {[%clk 00:27:08]} {[%emt 00:00:19]}
Bc1 {[%clk 00:59:14]} {[%emt 00:03:28]} 55. Kc3 {[%clk 00:23:18]} {[%emt
00:04:25]} f5 {[%clk 00:58:14]} {[%emt 00:01:29]} 56. Kb3 {[%clk 00:23:28]}
{[%emt 00:00:21]} Ra8 {[%clk 00:58:02]} {[%emt 00:00:38]} 57. Kc2 {[%clk
00:23:19]} {[%emt 00:00:42]} Rc8 {[%clk 00:57:40]} {[%emt 00:00:50]} 58. Kb3
{[%clk 00:23:20]} {[%emt 00:00:32]} f4 {[%clk 00:54:46]} {[%emt 00:03:24]} 59.
Nxa3 {[%clk 00:22:38]} {[%emt 00:01:13]} Bxa3 {[%clk 00:55:08]} {[%emt
00:00:08]} 60. Kxa3 {[%clk 00:22:07]} {[%emt 00:01:01]} Ra8+ {[%clk 00:55:29]}
{[%emt 00:00:09]} 61. Kb2 {[%clk 00:22:28]} {[%emt 00:00:09]} Rxa2+ {[%clk
00:55:56]} {[%emt 00:00:03]} 62. Kxa2 {[%clk 00:22:47]} {[%emt 00:00:11]} f3
{[%clk 00:56:24]} {[%emt 00:00:02]} 0-1

[Event "NJSK 2023 Meisjes B"]
[Site "Almelo, Netherlands"]
[Date "2023.05.03"]
[Round "4.4"]
[White "Oostinga, Elisa"]
[Black "Kulikova, Polina"]
[Result "1/2-1/2"]
[TimeControl "90min/40moves + 30min + 30sec/move"]
[WhiteElo "1034"]
[BlackElo "1589"]

1. e4 {[%clk 01:30:58]} {[%emt 00:00:02]} c6 {[%clk 01:30:54]} {[%emt
00:00:07]} 2. d4 {[%clk 01:31:21]} {[%emt 00:00:07]} d5 {[%clk 01:31:18]}
{[%emt 00:00:06]} 3. exd5 {[%clk 01:31:42]} {[%emt 00:00:09]} cxd5 {[%clk
01:31:38]} {[%emt 00:00:10]} 4. Bd3 {[%clk 01:31:57]} {[%emt 00:00:14]} Nc6
{[%clk 01:31:50]} {[%emt 00:00:19]} 5. c3 {[%clk 01:32:16]} {[%emt 00:00:09]}
Nf6 {[%clk 01:31:58]} {[%emt 00:00:22]} 6. Bf4 {[%clk 01:32:20]} {[%emt
00:00:25]} Qb6 {[%clk 01:28:25]} {[%emt 00:04:03]} 7. Qd2 {[%clk 01:32:24]}
{[%emt 00:00:26]} Bg4 {[%clk 01:27:15]} {[%emt 00:01:40]} 8. Ne2 {[%clk
01:31:35]} {[%emt 00:01:19]} e6 {[%clk 01:27:13]} {[%emt 00:00:32]} 9. O-O
{[%clk 01:30:51]} {[%emt 00:01:14]} Be7 {[%clk 01:27:19]} {[%emt 00:00:24]} 10.
h3 {[%clk 01:26:24]} {[%emt 00:04:57]} Bh5 {[%clk 01:27:01]} {[%emt 00:00:49]}
11. Na3 {[%clk 01:22:19]} {[%emt 00:04:36]} a6 {[%clk 01:26:16]} {[%emt
00:01:14]} 12. Rab1 {[%clk 01:21:23]} {[%emt 00:01:25]} Qa5 {[%clk 01:23:46]}
{[%emt 00:03:00]} 13. Rfe1 {[%clk 01:11:22]} {[%emt 00:10:32]} b5 {[%clk
01:13:02]} {[%emt 00:11:14]} 14. Nc2 {[%clk 01:01:42]} {[%emt 00:10:09]} Bg6
{[%clk 01:04:15]} {[%emt 00:09:16]} 15. a3 {[%clk 00:58:16]} {[%emt 00:03:58]}
O-O {[%clk 00:52:37]} {[%emt 00:12:07]} 16. Ng3 {[%clk 00:53:51]} {[%emt
00:04:56]} Bxd3 {[%clk 00:47:27]} {[%emt 00:05:39]} 17. Qxd3 {[%clk 00:54:00]}
{[%emt 00:00:21]} Qd8 {[%clk 00:45:40]} {[%emt 00:02:18]} 18. Re3 {[%clk
00:46:50]} {[%emt 00:07:40]} h6 {[%clk 00:41:37]} {[%emt 00:04:32]} 19. Nb4
{[%clk 00:35:09]} {[%emt 00:12:11]} Qb6 {[%clk 00:37:02]} {[%emt 00:05:05]} 20.
Nxc6 {[%clk 00:31:15]} {[%emt 00:04:24]} Qxc6 {[%clk 00:37:26]} {[%emt
00:00:05]} 21. Qe2 {[%clk 00:28:44]} {[%emt 00:02:57]} Bd6 {[%clk 00:37:11]}
{[%emt 00:00:48]} 22. Be5 {[%clk 00:26:09]} {[%emt 00:03:06]} Kh7 {[%clk
00:20:05]} {[%emt 00:17:37]} 23. Bxf6 {[%clk 00:23:29]} {[%emt 00:03:09]} Bxg3
{[%clk 00:18:22]} {[%emt 00:02:12]} 24. Qd3+ {[%clk 00:22:45]} {[%emt
00:01:14]} Kh8 {[%clk 00:16:16]} {[%emt 00:02:37]} 25. Bxg7+ {[%clk 00:22:52]}
{[%emt 00:00:23]} Kxg7 {[%emt 00:00:04]} 26. Rxg3+ {[%clk 00:23:10]} {[%emt
00:00:10]} Kh8 {[%clk 00:17:04]} {[%emt 00:00:10]} 27. Qe3 {[%clk 00:21:02]}
{[%emt 00:02:37]} Kh7 {[%clk 00:17:18]} {[%emt 00:00:17]} 28. Re1 {[%clk
00:19:49]} {[%emt 00:01:42]} Rg8 {[%clk 00:16:53]} {[%emt 00:00:54]} 29. Qd3+
{[%clk 00:18:53]} {[%emt 00:01:26]} Kh8 {[%clk 00:17:20]} {[%emt 00:00:03]} 30.
Re5 {[%clk 00:17:47]} {[%emt 00:01:36]} Qc4 {[%clk 00:14:23]} {[%emt 00:03:28]}
31. Qf3 {[%clk 00:16:05]} {[%emt 00:02:11]} Qc7 {[%clk 00:11:22]} {[%emt
00:03:31]} 32. Qf6+ {[%clk 00:15:05]} {[%emt 00:01:30]} Kh7 {[%clk 00:11:21]}
{[%emt 00:00:31]} 33. Rh5 {[%clk 00:13:14]} {[%emt 00:02:20]} Rg6 {[%clk
00:11:04]} {[%emt 00:00:47]} 34. Rxg6 {[%clk 00:10:17]} {[%emt 00:03:27]} fxg6
{[%clk 00:11:33]} {[%emt 00:00:02]} 35. Re5 {[%clk 00:10:25]} {[%emt 00:00:21]}
Re8 {[%clk 00:11:26]} {[%emt 00:00:24]} 36. Rxe6 {[%clk 00:10:08]} {[%emt
00:01:01]} Rxe6 {[%clk 00:11:19]} {[%emt 00:00:36]} 37. Qxe6 {[%clk 00:10:30]}
{[%emt 00:00:08]} Qb7 {[%clk 00:11:45]} {[%emt 00:00:05]} 38. Kf1 {[%clk
00:09:40]} {[%emt 00:01:19]} a5 {[%clk 00:11:37]} {[%emt 00:00:38]} 39. Qd6
{[%clk 00:09:45]} {[%emt 00:00:24]} Kg7 {[%clk 00:10:25]} {[%emt 00:01:43]} 40.
Ke2 {[%clk 00:09:00]} {[%emt 00:01:15]} Kf7 {[%clk 00:10:35]} {[%emt 00:00:20]}
41. Qf4+ {[%clk 00:09:00]} {[%emt 00:00:30]} Kg7 {[%clk 00:10:26]} {[%emt
00:00:39]} 42. g3 {[%clk 00:09:01]} {[%emt 00:00:29]} h5 {[%clk 00:09:52]}
{[%emt 00:01:04]} 43. b3 {[%clk 00:09:07]} {[%emt 00:00:24]} b4 {[%clk
00:10:01]} {[%emt 00:00:22]} 44. cxb4 {[%clk 00:08:11]} {[%emt 00:01:27]} axb4
{[%clk 00:09:44]} {[%emt 00:00:47]} 45. Qd6 {[%clk 00:07:22]} {[%emt 00:01:18]}
Qb5+ {[%clk 00:08:13]} {[%emt 00:02:01]} 46. Ke3 {[%clk 00:07:01]} {[%emt
00:00:50]} 1/2-1/2